bitfinex/quotes_SOLUSD_20220218
["timestamp","ask_amount","ask_price","bid_price","bid_amount"]
[1645217160640,116.1,91.184,91.021,55.01]
[1645217160641,1.54330377,91.183,91.08,54.882]
[1645217160842,1.54330377,91.183,91.081,6.25]
[1645217161041,1.54330377,91.175,91.1,16.4658]
[1645217161246,1.54330377,91.175,91.101,0.25]
[1645217161446,49.74117335,91.171,91.101,6.25]
[1645217161646,49.74117335,91.171,91.102,5.486]
[1645217161843,49.74117335,91.171,91.104,110.1]
[1645217162044,49.74117335,91.171,91.106,110.1]
[1645217162244,49.74117335,91.171,91.108,110.1]
[1645217162444,49.74117335,91.171,91.11,110.1]
[1645217162644,49.74117335,91.171,91.111,121.836]
[1645217162845,49.74117335,91.171,91.112,6.25]
[1645217163246,49.74117335,91.171,91.13,16.4602]
[1645217163646,49.74117335,91.171,91.112,6.25]
[1645217163647,49.74117335,91.171,91.112,0.25]
[1645217164146,49.74117335,91.171,91.103,5.735]
[1645217164346,49.74117335,91.171,91.104,6.0]
[1645217164552,49.74117335,91.171,91.105,5.736]
[1645217164748,49.74117335,91.171,91.106,6.0]
[1645217164950,49.74117335,91.171,91.107,5.736]
[1645217165173,49.74117335,91.171,91.108,6.0]
[1645217165351,49.74117335,91.171,91.12,16.4625]
[1645217165551,49.74117335,91.171,91.108,6.0]
[1645217165751,110.1,91.169,91.09,54.8766]
[1645217165951,5.486,91.168,91.062,5.486]
[1645217166154,1.54330377,91.16,91.06,5.487]
[1645217166352,1.54330377,91.162,91.06,5.487]
[1645217166554,1.54330377,91.162,91.077,5.487]
[1645217166953,1.54330377,91.162,91.078,0.25]
[1645217167151,1.54330377,91.162,91.077,5.487]
[1645217167352,1.54330377,91.161,91.09,16.4681]
[1645217167552,1.54330377,91.162,91.09,16.4681]
[1645217167857,1.54330377,91.163,91.09,16.4681]
[1645217168052,1.54330377,91.163,91.077,115.587]
[1645217168256,1.54330377,91.168,91.079,110.1]
[1645217168453,1.54330377,91.168,91.1,16.4651]
[1645217169056,25.01140377,91.17,91.081,110.1]
[1645217169254,49.74117335,91.171,91.09,2.6293831]
[1645217169454,49.74117335,91.171,91.12,16.4616]
[1645217170053,6.0,91.17,91.12,16.4616]
[1645217171256,6.0,91.17,91.084,5.485]
[1645217171455,1.54330377,91.168,91.084,5.485]
[1645217171659,1.54330377,91.168,91.078,5.486]
[1645217171856,1.54330377,91.161,91.1,16.4667]
[1645217172260,110.1,91.156,91.077,5.486]
[1645217172461,1.54330377,91.153,91.06,110.1]
[1645217172678,1.54330377,91.153,91.054,5.487]
[1645217172679,1.54330377,91.148,91.061,116.1]
[1645217172881,1.54330377,91.147,91.061,116.1]
[1645217173078,1.54330377,91.143,91.061,116.1]
[1645217173279,52.68084674,91.142,91.061,116.1]
[1645217173481,52.68084674,91.142,91.09,16.4681]
[1645217173679,6.0,91.141,91.09,16.4681]
[1645217176590,110.1,91.14,91.056,5.487]
[1645217176791,115.588,91.14,91.04,54.9081]
[1645217176989,117.13130377,91.14,91.041,11.489]
[1645217177190,1.54330377,91.138,91.041,6.0]
[1645217177487,1.54330377,91.134,91.06,16.4735]
[1645217177688,5.488,91.133,91.06,16.4735]
[1645217177889,5.488,91.134,91.06,16.4735]
[1645217178288,5.488,91.136,91.06,16.4735]
[1645217178489,16.4743,91.14,91.042,5.488]
[1645217178689,1.54330377,91.139,91.043,6.25]
[1645217178891,1.54330377,91.138,91.044,5.489]
[1645217179090,16.4743,91.14,91.044,5.489]
[1645217179091,16.4743,91.14,91.05,54.903]
[1645217179292,54.22415051,91.142,91.051,11.738]
[1645217179489,52.68084674,91.142,91.051,18.9573831]
[1645217179689,52.68084674,91.142,91.052,110.1]
[1645217179888,52.68084674,91.142,91.054,110.1]
[1645217180090,52.68084674,91.142,91.08,54.8845]
[1645217180692,52.68084674,91.142,91.055,5.487]
[1645217180893,52.68084674,91.142,91.057,110.1]
[1645217181091,52.68084674,91.142,91.058,11.738]
[1645217181291,52.68084674,91.142,91.058,11.488]
[1645217181493,6.0,91.141,91.059,0.25]
[1645217181692,6.0,91.141,91.06,5.488]
[1645217181893,6.0,91.141,91.061,0.25]
[1645217182092,6.0,91.141,91.062,5.488]
[1645217182292,6.0,91.141,91.063,0.25]
[1645217182592,6.0,91.141,91.09,16.4685]
[1645217183392,6.0,91.141,91.06,54.8961]
[1645217183793,6.0,91.141,91.061,5.488]
[1645217184194,28.9107,91.141,91.06,54.8961]
[1645217184496,28.9107,91.141,91.08,16.4701]
[1645217185293,28.9107,91.141,91.055,5.488]
[1645217185494,28.9107,91.141,91.054,48.6884]
[1645217185495,1.54330377,91.138,91.054,48.6884]
[1645217185695,1.54330377,91.133,91.054,48.6884]
[1645217185995,5.488,91.132,91.054,48.6884]
[1645217186193,7.03130377,91.132,91.054,48.6884]
[1645217186394,5.488,91.132,91.054,48.6884]
[1645217186593,5.488,91.133,91.054,48.6884]
[1645217186793,1.54330377,91.135,91.054,48.6884]
[1645217186994,5.488,91.134,91.054,48.6884]
[1645217187196,1.54330377,91.129,91.04,54.9072]
[1645217187397,110.1,91.119,91.02,54.9191]
[1645217187594,110.1,91.119,91.021,11.49]
[1645217188198,110.1,91.117,91.021,11.49]
[1645217188399,110.1,91.117,91.022,0.25]
[1645217188599,110.1,91.117,91.023,5.49]
[1645217188799,110.1,91.117,91.024,6.25]
[1645217188999,16.4774,91.11,91.04,16.4774]
[1645217189199,39.66191057,91.109,91.04,16.4774]
[1645217190099,110.1,91.108,91.04,16.4774]
[1645217190501,39.66191057,91.109,91.04,16.4774]
[1645217191102,110.1,91.108,91.04,16.4774]
[1645217191904,5.49,91.107,91.03,16.4789]
[1645217192805,110.1,91.105,91.03,16.4789]
[1645217193003,5.49,91.104,91.03,16.4789]
[1645217193205,6.0,91.103,91.03,16.4789]
[1645217193604,23.9147,91.106,91.03,16.4789]
[1645217193803,6.0,91.105,91.03,16.4789]
[1645217194404,110.1,91.104,91.03,16.4789]
[1645217194812,110.1,91.104,91.02,16.481]
[1645217195010,110.1,91.104,91.021,6.0]
[1645217195206,110.1,91.104,91.009,5.489]
[1645217195410,110.1,91.089,90.981,110.87416071]
[1645217195610,16.4856,91.06,90.981,110.87416071]
[1645217195813,110.1,91.058,90.981,110.87416071]
[1645217196008,52.6469282,91.059,90.981,110.87416071]
[1645217196207,52.6469282,91.059,90.965,5.492]
[1645217196410,48.641,91.058,90.965,5.492]
[1645217196608,48.641,91.058,90.967,110.1]
[1645217196808,52.6469282,91.059,90.971,110.1]
[1645217197007,1.54330377,91.095,90.99,126.5863]
[1645217197208,29.8177,91.094,90.992,110.1]
[1645217197410,29.8177,91.094,90.993,35.7705]
[1645217198008,162.00695198,91.093,90.993,35.7705]
[1645217198418,16.4808,91.08,91.02,16.4802]
[1645217198609,43.42710033,91.079,91.02,16.4802]
[1645217202717,110.1,91.069,91.001,5.49]
[1645217202914,5.492,91.068,91.0,16.4829]
[1645217203116,5.492,91.068,91.001,6.0]
[1645217203415,115.592,91.077,90.993,6.0]
[1645217203616,39.62017854,91.065,90.993,6.0]
[1645217203816,115.592,91.064,90.952,6.0]
[1645217204119,110.1,91.062,90.953,5.494]
[1645217204317,16.486,91.05,90.99,16.4861]
[1645217204515,53.10014851,91.049,90.991,6.0]
[1645217205118,53.10014851,91.049,90.963,110.1]
[1645217205317,53.10014851,91.049,90.965,110.1]
[1645217205614,53.10014851,91.049,90.99,16.4863]
[1645217205818,53.10014851,91.049,90.991,11.493]
[1645217206017,53.10014851,91.049,90.991,6.0]
[1645217206318,53.10014851,91.049,90.981,6.0]
[1645217206515,53.10014851,91.049,90.982,0.25]
[1645217207619,6.0,91.048,90.97,6.25]
[1645217207822,6.0,91.048,90.971,5.493]
[1645217208020,53.10014851,91.049,90.99,16.486]
[1645217208222,53.10014851,91.049,90.991,6.25]
[1645217208421,53.10014851,91.049,90.992,5.493]
[1645217208623,53.10014851,91.049,90.993,6.0]
[1645217208823,6.0,91.048,90.974,5.493]
[1645217209023,30.7255,91.048,90.975,6.0]
[1645217209229,30.7255,91.048,90.99,16.4862]
[1645217212535,16.4877,91.04,90.98,16.4877]
[1645217213129,6.0,91.039,90.98,16.4877]
[1645217214549,6.0,91.039,90.975,6.0]
[1645217214749,16.4897,91.03,90.971,6.0]
[1645217214950,45.64896175,91.029,90.971,6.0]
[1645217217356,45.64896175,91.029,90.98,16.4874]
[1645217217554,45.64896175,91.029,90.981,6.0]
[1645217217754,45.64896175,91.029,90.966,6.0]
[1645217217955,45.64896175,91.029,90.967,0.25]
[1645217218958,45.64896175,91.029,90.952,5.494]
[1645217219257,110.1,91.027,90.951,23.5175]
[1645217219461,110.1,91.019,90.951,23.5175]
[1645217219660,5.495,91.018,90.922,24.6401]
[1645217219858,110.1,91.017,90.922,24.6401]
[1645217220258,5.496,91.016,90.908,5.496]
[1645217220460,110.1,91.009,90.9,16.5022]
[1645217220662,110.1,90.999,90.9,16.5022]
[1645217220857,15.83,91.0,90.9,16.5022]
[1645217220858,110.1,90.989,90.901,5.497]
[1645217221061,110.1,90.989,90.9,16.5022]
[1645217221262,5.497,90.988,90.9,16.5022]
[1645217221460,5.497,90.988,90.901,6.0]
[1645217222259,110.1,90.986,90.901,6.0]
[1645217222461,51.51656589,90.969,90.901,6.0]
[1645217223560,6.0,90.968,90.901,6.0]
[1645217224463,16.5022,90.96,90.89,16.5042]
[1645217225864,22.532,90.967,90.89,16.5042]
[1645217226070,110.1,90.947,90.88,16.5059]
[1645217226267,110.1,90.947,90.853,5.499]
[1645217226470,110.1,90.945,90.831,54.1649]
[1645217226667,110.1,90.939,90.831,54.1649]
[1645217227066,110.1,90.927,90.831,54.1649]
[1645217227266,110.1,90.925,90.832,6.0]
[1645217227465,110.1,90.925,90.833,5.501]
[1645217227666,24.148,90.926,90.834,6.0]
[1645217227869,110.1,90.925,90.835,5.501]
[1645217228071,24.148,90.926,90.836,6.0]
[1645217228271,24.148,90.926,90.84,16.5117]
[1645217228867,110.1,90.925,90.84,16.5117]
[1645217229268,110.1,90.923,90.84,16.5117]
[1645217229470,6.0,90.924,90.84,16.5117]
[1645217229769,6.0,90.924,90.85,16.5108]
[1645217229970,24.148,90.926,90.85,16.5108]
[1645217230172,6.0,90.925,90.85,16.5108]
[1645217230470,6.0,90.925,90.851,6.0]
[1645217231078,110.1,90.924,90.85,16.5108]
[1645217232077,110.1,90.925,90.841,0.25]
[1645217232281,5.501,90.924,90.841,6.0]
[1645217232705,5.501,90.924,90.84,16.5124]
[1645217232903,16.5145,90.9,90.831,48.6649]
[1645217233102,45.8087589,90.899,90.831,48.6649]
[1645217234104,45.8087589,90.899,90.832,6.0]
[1645217234805,6.0,90.898,90.832,6.0]
[1645217237013,16.5153,90.89,90.832,6.0]
[1645217237412,6.0,90.898,90.832,6.0]
[1645217237612,45.8087589,90.899,90.84,16.513]
[1645217237813,45.8087589,90.899,90.831,48.6649]
[1645217237814,45.8087589,90.899,90.841,11.752]
[1645217238009,70.8669,90.94,90.841,11.752]
[1645217238209,55.0369,90.94,90.841,14.3813831]
[1645217238409,55.0369,90.94,90.841,11.752]
[1645217238810,112.7293831,90.939,90.841,11.752]
[1645217239114,53.85898384,90.913,90.841,11.752]
[1645217239310,53.85898384,90.913,90.85,16.5102]
[1645217239612,53.85898384,90.913,90.851,11.751]
[1645217240011,53.85898384,90.913,90.851,6.25]
[1645217240312,53.85898384,90.913,90.852,6.0]
[1645217240510,53.85898384,90.913,90.853,0.25]
[1645217240711,53.85898384,90.913,90.851,0.25]
[1645217241313,53.85898384,90.913,90.86,16.5086]
[1645217242110,6.0,90.912,90.86,16.5086]
[1645217242912,53.85898384,90.913,90.86,16.5086]
[1645217243713,53.85898384,90.913,90.861,6.0]
[1645217244114,53.85898384,90.913,90.86,16.5086]
[1645217244721,53.85898384,90.913,90.861,6.0]
[1645217244917,53.85898384,90.913,90.86,16.5086]
[1645217245820,16.508,90.93,90.861,0.25]
[1645217246019,55.0251,90.96,90.88,16.5063]
[1645217246020,24.8565,90.944,90.88,16.5063]
[1645217246220,24.8565,90.944,90.881,0.25]
[1645217246720,15.83,90.97,90.881,0.25]
[1645217246924,15.83,90.97,90.91,16.4993]
[1645217246925,48.71954238,90.969,90.91,16.4993]
[1645217247325,48.71954238,90.969,90.892,5.498]
[1645217247527,42.71954238,90.969,90.894,110.1]
[1645217247729,42.71954238,90.969,90.896,110.1]
[1645217247923,42.71954238,90.969,90.898,110.1]
[1645217248223,42.71954238,90.969,90.92,16.4989]
[1645217248423,42.71954238,90.969,90.921,11.747]
[1645217248622,42.71954238,90.969,90.921,6.0]
[1645217249026,42.71954238,90.969,90.91,54.9875]
[1645217249223,42.71954238,90.969,90.911,0.25]
[1645217249623,42.71954238,90.969,90.911,6.25]
[1645217250427,42.71954238,90.969,90.93,16.4963]
[1645217251228,22.7478,90.989,90.931,6.25]
[1645217251828,22.7478,90.989,90.94,16.4941]
[1645217252228,45.83838288,90.988,90.941,6.0]
[1645217252628,45.83838288,90.988,90.94,16.4941]
[1645217253635,45.83838288,90.988,90.941,6.25]
[1645217253830,45.83838288,90.988,90.95,16.4915]
[1645217254030,45.83838288,90.988,90.951,6.25]
[1645217254233,45.83838288,90.988,90.952,5.496]
[1645217254434,45.83838288,90.988,90.953,6.25]
[1645217254630,45.83838288,90.988,90.954,5.496]
[1645217254830,45.83838288,90.988,90.955,6.0]
[1645217255029,45.83838288,90.988,90.911,2.6293831]
[1645217255030,45.83838288,90.988,90.941,6.0]
[1645217255230,48.46776598,90.988,90.941,6.0]
[1645217255631,48.46776598,90.988,90.915,6.0]
[1645217255833,48.46776598,90.988,90.916,5.747]
[1645217256030,45.83838288,90.988,90.917,6.0]
[1645217256230,45.83838288,90.988,90.918,5.747]
[1645217256430,45.83838288,90.988,90.93,16.4958]
[1645217257030,2.6293831,90.987,90.93,16.4958]
[1645217257231,6.0,90.986,90.93,16.4958]
[1645217257630,2.6293831,90.985,90.93,16.4958]
[1645217258032,45.83838288,90.988,90.93,16.4958]
[1645217258232,45.83838288,90.988,90.931,11.746]
[1645217258438,45.83838288,90.988,90.94,16.4932]
[1645217258637,45.83838288,90.988,90.941,0.25]
[1645217258839,45.83838288,90.988,90.941,6.25]
[1645217259035,45.83838288,90.988,90.942,5.496]
[1645217259238,24.8161,91.029,90.943,6.25]
[1645217259440,24.8161,91.029,90.944,5.495]
[1645217259735,24.8161,91.029,90.945,6.25]
[1645217259938,24.8161,91.029,90.946,5.495]
[1645217260137,42.60576513,91.018,90.95,16.492]
[1645217260342,42.60576513,91.018,90.96,54.9597]
[1645217260541,42.60576513,91.018,90.961,11.745]
[1645217261343,42.60576513,91.018,90.97,16.4879]
[1645217261541,42.60576513,91.018,90.971,6.0]
[1645217261741,45.23514823,91.018,90.971,6.0]
[1645217262139,45.23514823,91.018,90.94,79.0548]
[1645217262140,6.0,91.017,90.942,6.0]
[1645217262340,35.3236,91.017,90.941,6.0]
[1645217262541,2.6293831,91.016,90.941,6.0]
[1645217262744,16.4937,91.01,90.95,16.4937]
[1645217263140,2.6293831,91.009,90.95,16.4937]
[1645217265543,16.4937,91.01,90.95,16.4937]
[1645217265743,23.8286,91.017,90.95,16.4937]
[1645217266146,23.8286,91.017,90.951,6.0]
[1645217266351,23.8286,91.017,90.96,16.4904]
[1645217266966,23.8286,91.017,90.961,6.0]
[1645217267568,23.8286,91.017,90.96,16.4904]
[1645217267770,23.8286,91.017,90.94,54.9691]
[1645217267771,16.4936,91.01,90.961,6.0]
[1645217267969,16.4936,91.01,90.951,6.0]
[1645217268167,2.6293831,91.009,90.95,16.4936]
[1645217268568,23.8286,91.017,90.95,16.4936]
[1645217268870,23.8286,91.017,90.96,16.4906]
[1645217269167,23.8286,91.017,90.951,6.0]
[1645217269168,23.8286,91.017,90.961,6.0]
[1645217269367,23.8286,91.017,90.962,0.25]
[1645217270370,23.8286,91.017,90.97,16.4894]
[1645217270571,42.60576513,91.018,90.971,6.0]
[1645217271172,42.60576513,91.018,90.952,6.0]
[1645217271371,42.60576513,91.018,90.953,5.745]
[1645217271571,42.60576513,91.018,90.954,6.0]
[1645217271769,42.60576513,91.018,90.955,5.745]
[1645217271971,42.60576513,91.018,90.956,6.0]
[1645217272173,42.60576513,91.018,90.97,16.4894]
[1645217272373,42.60576513,91.018,90.971,6.0]
[1645217272772,2.6293831,91.017,90.948,5.494]
[1645217272973,8.6293831,91.017,90.931,5.495]
[1645217273172,8.6293831,91.017,90.935,0.25]
[1645217273373,2.6293831,91.016,90.935,6.25]
[1645217273773,23.8727,91.015,90.935,0.25]
[1645217273978,110.1,91.014,90.935,0.25]
[1645217274275,110.1,91.009,90.935,6.0]
[1645217274475,110.1,91.009,90.929,6.0]
[1645217274683,2.6293831,91.008,90.912,11.496]
[1645217275376,16.4958,91.0,90.93,16.4973]
[1645217275577,49.19411713,90.999,90.931,6.0]
[1645217275778,49.19411713,90.999,90.912,11.496]
[1645217275976,23.8309,90.998,90.92,54.9816]
[1645217276178,23.8309,90.998,90.921,11.496]
[1645217276379,23.8309,90.998,90.922,110.35]
[1645217276579,23.8309,90.998,90.923,11.496]
[1645217276778,23.8309,90.998,90.924,6.25]
[1645217276978,23.8309,90.998,90.94,16.4956]
[1645217277185,2.6293831,90.997,90.941,6.0]
[1645217277379,2.6293831,90.997,90.94,16.4956]
[1645217277583,2.6293831,90.997,90.911,24.6459]
[1645217277783,2.6293831,90.997,90.912,0.25]
[1645217277784,23.454,90.996,90.912,0.25]
[1645217278179,2.6293831,90.995,90.912,6.0]
[1645217278380,16.4973,90.99,90.93,16.4973]
[1645217280384,110.1,90.989,90.92,16.4991]
[1645217280585,110.1,90.979,90.92,16.4991]
[1645217280784,110.1,90.977,90.89,54.9987]
[1645217280985,110.1,90.977,90.891,11.748]
[1645217281185,76.90711839,90.978,90.892,6.0]
[1645217281389,2.6293831,90.976,90.893,5.748]
[1645217281591,2.6293831,90.976,90.893,5.498]
[1645217281787,110.1,90.969,90.884,24.6977]
[1645217281987,5.498,90.968,90.884,24.6977]
[1645217282186,110.1,90.967,90.884,24.6977]
[1645217282387,110.1,90.965,90.884,24.6977]
[1645217282588,110.1,90.963,90.884,24.6977]
[1645217282794,5.499,90.962,90.884,24.6977]
[1645217283389,16.5032,90.96,90.9,16.5028]
[1645217285210,6.0,90.959,90.9,16.5028]
[1645217286510,16.5042,90.95,90.9,16.5028]
[1645217286710,45.56801002,90.949,90.9,16.5028]
[1645217287712,45.56801002,90.949,90.91,16.5012]
[1645217288114,15.83,90.98,90.91,16.5012]
[1645217288313,15.83,90.99,90.911,0.25]
[1645217288518,6.0,90.989,90.912,5.497]
[1645217288714,6.0,90.988,90.913,6.25]
[1645217288914,24.1767,90.995,90.914,5.497]
[1645217289114,42.49432987,90.993,90.915,6.25]
[1645217289315,42.49432987,90.993,90.916,5.497]
[1645217289515,42.49432987,90.993,90.917,6.25]
[1645217289714,42.49432987,90.993,90.918,5.497]
[1645217289915,42.49432987,90.993,90.919,6.25]
[1645217290115,42.49432987,90.993,90.92,5.497]
[1645217290314,42.49432987,90.993,90.94,16.4944]
[1645217290720,42.49432987,90.993,90.941,6.25]
[1645217290916,42.49432987,90.993,90.942,5.496]
[1645217291215,42.49432987,90.993,90.943,6.25]
[1645217291417,42.49432987,90.993,90.944,5.496]
[1645217291617,42.49432987,90.993,90.945,6.25]
[1645217291815,42.49432987,90.993,90.946,5.496]
[1645217292016,42.49432987,90.993,90.947,6.25]
[1645217292315,42.49432987,90.993,90.95,16.4915]
[1645217293321,42.49432987,90.993,90.951,0.25]
[1645217293518,42.49432987,90.993,90.96,16.4915]
[1645217297626,42.49432987,90.993,90.95,16.4934]
[1645217297832,42.49432987,90.993,90.921,5.496]
[1645217298027,30.375,90.992,90.922,6.0]
[1645217298427,33.0043831,90.992,90.921,6.0]
[1645217298828,33.0043831,90.992,90.922,0.25]
[1645217299028,33.0043831,90.992,90.92,54.9804]
[1645217299429,16.4973,90.99,90.93,16.4973]
[1645217300427,30.375,90.992,90.93,16.4973]
[1645217300629,24.375,90.992,90.94,16.4941]
[1645217300828,24.375,90.992,90.941,0.25]
[1645217301928,16.4914,91.02,90.95,16.4929]
[1645217302131,2.6293831,91.028,90.951,12.295]
[1645217302328,197.93,91.08,90.961,5.55]
[1645217302329,23.8057,91.059,90.961,5.55]
[1645217302531,24.9599,91.079,90.951,14.3743831]
[1645217302532,24.9599,91.079,90.972,110.1]
[1645217302730,24.9599,91.079,90.982,110.1]
[1645217302930,23.8057,91.11,91.001,5.55]
[1645217302931,39.96968202,91.078,91.001,5.55]
[1645217303132,39.96968202,91.078,91.01,15.83]
[1645217303332,39.96968202,91.078,91.011,11.74]
[1645217303531,39.96968202,91.078,91.011,6.25]
[1645217303736,39.96968202,91.078,91.011,0.25]
[1645217304130,39.96968202,91.078,91.02,16.4761]
[1645217304332,39.96968202,91.078,91.021,6.25]
[1645217304733,39.96968202,91.078,91.021,0.25]
[1645217305434,39.96968202,91.078,91.03,16.4793]
[1645217305634,39.96968202,91.078,91.031,6.25]
[1645217306136,39.96968202,91.078,91.032,5.49]
[1645217306337,39.96968202,91.078,91.033,6.25]
[1645217306736,39.96968202,91.078,91.033,0.25]
[1645217307338,39.96968202,91.078,91.04,16.4766]
[1645217307538,39.96968202,91.078,91.006,5.74]
[1645217307741,39.96968202,91.078,91.007,6.0]
[1645217307940,39.96968202,91.078,91.008,5.74]
[1645217308241,39.96968202,91.078,91.009,6.0]
[1645217308440,39.96968202,91.078,91.01,5.74]
[1645217308640,39.96968202,91.078,91.011,6.0]
[1645217308844,39.96968202,91.078,91.012,0.25]
[1645217309038,39.96968202,91.078,91.03,16.4787]
[1645217309338,39.96968202,91.078,91.031,6.25]
[1645217309738,39.96968202,91.078,91.031,6.0]
[1645217312664,39.96968202,91.078,90.985,110.1]
[1645217312665,39.96968202,91.078,91.04,16.4773]
[1645217312865,39.96968202,91.078,91.041,0.25]
[1645217313066,23.9555,91.099,91.041,0.25]
[1645217313466,110.1,91.121,91.041,0.25]
[1645217313666,110.1,91.121,91.06,16.4725]
[1645217313867,110.1,91.108,91.024,6.0]
[1645217314069,42.37689455,91.107,91.025,0.25]
[1645217315270,42.37689455,91.107,91.017,5.74]
[1645217315475,42.37689455,91.107,91.04,16.4758]
[1645217315671,42.37689455,91.107,91.041,6.25]
[1645217316072,42.37689455,91.107,91.041,0.25]
[1645217316372,42.37689455,91.107,91.04,16.4758]
[1645217316576,110.1,91.105,91.04,16.4758]
[1645217316872,11.49,91.106,91.04,16.4758]
[1645217317274,6.0,91.106,91.04,16.4758]
[1645217317876,6.0,91.106,91.041,0.25]
[1645217318277,110.1,91.105,91.041,0.25]
[1645217318480,110.1,91.105,91.021,5.49]
[1645217318677,5.49,91.104,91.022,6.0]
[1645217318879,15.83,91.09,91.013,6.0]
[1645217319087,53.67201537,91.088,91.014,0.25]
[1645217319279,53.67201537,91.088,91.013,6.0]
[1645217319879,53.67201537,91.088,91.001,6.0]
[1645217320179,6.0,91.087,91.002,0.25]
[1645217320379,16.4815,91.08,91.02,16.4807]
[1645217320581,16.4815,91.08,91.021,6.0]
[1645217320980,16.4815,91.08,91.02,16.4807]
[1645217321182,116.1,91.079,91.02,16.4807]
[1645217321383,5.49,91.078,90.98,54.944]
[1645217321584,110.1,91.069,91.01,16.4828]
[1645217321782,5.492,91.068,91.01,16.4828]
[1645217322190,110.1,91.069,91.01,16.4828]
[1645217322385,110.1,91.069,90.981,5.492]
[1645217322585,16.4853,91.06,90.99,16.4853]
[1645217322782,49.75871997,91.059,90.991,6.0]
[1645217323788,110.1,91.058,90.991,6.0]
[1645217323986,16.4869,91.05,90.991,6.0]
[1645217324188,5.493,91.049,90.981,6.0]
[1645217324385,115.593,91.049,90.981,6.0]
[1645217325088,16.4886,91.04,90.981,6.0]
[1645217325289,6.0,91.039,90.971,6.0]
[1645217325990,6.0,91.038,90.97,16.4901]
[1645217326189,6.0,91.037,90.97,16.4901]
[1645217326389,15.83,91.04,90.97,16.4901]
[1645217326588,6.0,91.039,90.97,16.4901]
[1645217326791,6.0,91.039,90.971,0.25]
[1645217326992,6.0,91.039,90.98,16.4884]
[1645217327391,15.83,91.04,90.98,16.4884]
[1645217327592,23.152,91.046,90.981,0.25]
[1645217327795,23.152,91.046,90.981,2.8793831]
[1645217327993,6.0,91.045,90.99,16.4866]
[1645217331118,110.1,91.044,90.99,16.4866]
[1645217331820,16.4886,91.04,90.98,16.4883]
[1645217332022,16.4886,91.04,90.957,24.28]
[1645217332224,16.4886,91.04,90.958,6.25]
[1645217333320,16.4886,91.04,90.958,6.0]
[1645217333321,110.1,91.019,90.958,6.0]
[1645217333521,47.812311,91.018,90.952,6.0]
[1645217333721,47.812311,91.018,90.943,6.0]
[1645217333920,24.0617,91.017,90.943,6.0]
[1645217334120,24.0617,91.017,90.96,16.492]
[1645217334322,24.0617,91.017,90.961,6.0]
[1645217335221,47.812311,91.018,90.97,16.4899]
[1645217335423,47.812311,91.018,90.971,6.25]
[1645217336121,47.812311,91.018,90.971,0.25]
[1645217336323,47.812311,91.018,90.98,16.4868]
[1645217338727,47.812311,91.018,90.97,16.49]
[1645217338926,47.812311,91.018,90.971,6.0]
[1645217339925,47.812311,91.018,90.98,16.4881]
[1645217341729,47.812311,91.018,90.981,6.0]
[1645217342235,47.812311,91.018,90.98,16.4881]
[1645217342631,47.812311,91.018,90.981,6.0]
[1645217343035,47.812311,91.018,90.98,16.4881]